[Event "Titled Tuesday Blitz May 16 Late 2023"]
[White "Karttunen, Mika"]
[Black "Gutkin, Ilya"]
[WhiteFideId "502081"]
[BlackFideId "16203470"]
[WhiteElo "2396"]
[BlackElo "2265"]
[Result "1-0"]
[Round "06"]
[TimeControl "180+2"]
[Date "2023.05.16"]
[WhiteClock "0:00:09"]
[BlackClock "0:00:00"]

1. d4 {[%clk 0:03:00]}  e6 {[%clk 0:02:59]} 2. c4 {[%clk 0:02:58]}  b6 {[%clk 0:02:59]} 3. Nc3 {[%clk 0:02:57]}  Bb7 {[%clk 0:03:00]} 4. a3 {[%clk 0:02:56]}  f5 {[%clk 0:03:00]} 5. Nf3 {[%clk 0:02:55]}  Nf6 {[%clk 0:03:00]} 6. g3 {[%clk 0:02:52]}  Ne4 {[%clk 0:02:58]} 7. Qc2 {[%clk 0:02:47]}  Be7 {[%clk 0:02:57]} 8. Bg2 {[%clk 0:02:47]}  O-O {[%clk 0:02:54]} 9. O-O {[%clk 0:02:47]}  Nxc3 {[%clk 0:02:54]} 10. Qxc3 {[%clk 0:02:47]}  Bf6 {[%clk 0:02:54]} 11. Qd2 {[%clk 0:02:25]}  Be4 {[%clk 0:02:54]} 12. b3 {[%clk 0:02:19]}  c5 {[%clk 0:02:53]} 13. Bb2 {[%clk 0:02:19]}  Nc6 {[%clk 0:02:47]} 14. dxc5 {[%clk 0:01:51]}  Bxb2 {[%clk 0:02:43]} 15. Qxb2 {[%clk 0:01:51]}  bxc5 {[%clk 0:02:44]} 16. b4 {[%clk 0:01:16]}  Rb8 {[%clk 0:02:41]} 17. b5 {[%clk 0:01:16]}  Qa5 {[%clk 0:02:31]} 18. e3 {[%clk 0:01:11]}  Qa4 {[%clk 0:02:09]} 19. Qc3 {[%clk 0:00:55]}  Na5 {[%clk 0:02:08]} 20. Ne5 {[%clk 0:00:45]}  Bxg2 {[%clk 0:02:00]} 21. Kxg2 {[%clk 0:00:46]}  Rfd8 {[%clk 0:01:57]} 22. Rac1 {[%clk 0:00:41]}  d6 {[%clk 0:01:53]} 23. Nd3 {[%clk 0:00:40]}  a6 {[%clk 0:01:38]} 24. bxa6 {[%clk 0:00:34]}  Rb3 {[%clk 0:01:36]} 25. Qc2 {[%clk 0:00:34]}  Rxa3 {[%clk 0:01:32]} 26. Nf4 {[%clk 0:00:30]}  Qc6+ {[%clk 0:01:14]} 27. Kg1 {[%clk 0:00:30]}  Kf7 {[%clk 0:01:10]} 28. Ra1 {[%clk 0:00:30]}  Rxa1 {[%clk 0:01:02]} 29. Rxa1 {[%clk 0:00:30]}  Qxa6 {[%clk 0:00:58]} 30. Qa4 {[%clk 0:00:29]}  g5 {[%clk 0:00:44]} 31. Nh5 {[%clk 0:00:18]}  Kg6 {[%clk 0:00:37]} 32. g4 {[%clk 0:00:18]}  Qxc4 {[%clk 0:00:29]} 33. Qxa5 {[%clk 0:00:13]}  Qxg4+ {[%clk 0:00:29]} 34. Ng3 {[%clk 0:00:13]}  Rd7 {[%clk 0:00:21]} 35. Qb5 {[%clk 0:00:13]}  Rf7 {[%clk 0:00:20]} 36. Qe2 {[%clk 0:00:12]}  Qxe2 {[%clk 0:00:16]} 37. Nxe2 {[%clk 0:00:13]}  d5 {[%clk 0:00:12]} 38. Ra6 {[%clk 0:00:13]}  Kf6 {[%clk 0:00:11]} 39. Rc6 {[%clk 0:00:14]}  c4 {[%clk 0:00:11]} 40. Nd4 {[%clk 0:00:15]}  Re7 {[%clk 0:00:12]} 41. f4 {[%clk 0:00:15]}  gxf4 {[%clk 0:00:11]} 42. exf4 {[%clk 0:00:15]}  Kf7 {[%clk 0:00:09]} 43. Kf2 {[%clk 0:00:16]}  e5 {[%clk 0:00:09]} 44. Nxf5 {[%clk 0:00:16]}  Re6 {[%clk 0:00:09]} 45. Nh6+ {[%clk 0:00:11]}  Kf6 {[%clk 0:00:08]} 46. Ng4+ {[%clk 0:00:10]}  Kf5 {[%clk 0:00:05]} 47. Rxe6 {[%clk 0:00:10]}  Kxe6 {[%clk 0:00:06]} 48. Nxe5 {[%clk 0:00:10]}  Kf5 {[%clk 0:00:06]} 49. Kf3 {[%clk 0:00:11]}  c3 {[%clk 0:00:06]} 50. Nd3 {[%clk 0:00:11]}  d4 {[%clk 0:00:05]} 51. Nc1 {[%clk 0:00:11]}  h6 {[%clk 0:00:04]} 52. Nd3 {[%clk 0:00:11]}  h5 {[%clk 0:00:03]} 53. Nc1 {[%clk 0:00:11]}  h4 {[%clk 0:00:00]} 54. h3 {[%clk 0:00:09]} 1-0


[Site "https://www.chess.com"]

[Event "Titled Tuesday Blitz May 16 Late 2023"]
[White "Mickiewicz, Piotr"]
[Black "Aggelis, Nikolaos"]
[WhiteFideId "1114891"]
[BlackFideId "4213220"]
[WhiteElo "2246"]
[BlackElo "2189"]
[Result "1-0"]
[Round "06"]
[TimeControl "180+2"]
[Date "2023.05.16"]
[WhiteClock "0:01:41"]
[BlackClock "0:00:58"]

1. c4 {[%clk 0:03:00]}  f5 {[%clk 0:02:56]} 2. g3 {[%clk 0:03:01]}  d6 {[%clk 0:02:54]} 3. Bg2 {[%clk 0:03:01]}  e5 {[%clk 0:02:52]} 4. Nc3 {[%clk 0:03:02]}  Nf6 {[%clk 0:02:48]} 5. e3 {[%clk 0:02:56]}  e4 {[%clk 0:02:46]} 6. Nge2 {[%clk 0:02:51]}  Nc6 {[%clk 0:02:43]} 7. d4 {[%clk 0:02:45]}  exd3 {[%clk 0:02:40]} 8. Nf4 {[%clk 0:02:45]}  Be7 {[%clk 0:02:33]} 9. Qxd3 {[%clk 0:02:42]}  Ne5 {[%clk 0:02:26]} 10. Qc2 {[%clk 0:02:40]}  O-O {[%clk 0:02:25]} 11. Ncd5 {[%clk 0:02:31]}  c6 {[%clk 0:02:16]} 12. Nxe7+ {[%clk 0:02:27]}  Qxe7 {[%clk 0:02:14]} 13. O-O {[%clk 0:02:28]}  g5 {[%clk 0:02:03]} 14. Nd3 {[%clk 0:02:25]}  Be6 {[%clk 0:01:53]} 15. b3 {[%clk 0:02:23]}  Rac8 {[%clk 0:01:32]} 16. Ba3 {[%clk 0:02:21]}  f4 {[%clk 0:01:22]} 17. Nxe5 {[%clk 0:02:17]}  c5 {[%clk 0:01:15]} 18. Nd3 {[%clk 0:02:01]}  Bf5 {[%clk 0:01:14]} 19. exf4 {[%clk 0:01:59]}  gxf4 {[%clk 0:01:15]} 20. Rfe1 {[%clk 0:01:57]}  Qg7 {[%clk 0:01:14]} 21. Qd2 {[%clk 0:01:51]}  fxg3 {[%clk 0:01:14]} 22. hxg3 {[%clk 0:01:50]}  Ng4 {[%clk 0:01:14]} 23. Nf4 {[%clk 0:01:47]}  Rce8 {[%clk 0:01:09]} 24. Bb2 {[%clk 0:01:43]}  Qg5 {[%clk 0:00:58]} 25. Bd5+ {[%clk 0:01:41]} 1-0


[Site "https://www.chess.com"]

[Event "Titled Tuesday Blitz May 16 Late 2023"]
[White "Reprintsev, Alexander"]
[Black "Prieto Aranguren, Alain"]
[WhiteFideId "14100541"]
[BlackFideId "2268906"]
[WhiteElo "2218"]
[BlackElo "2209"]
[Result "0-1"]
[Round "06"]
[TimeControl "180+2"]
[Date "2023.05.16"]
[WhiteClock "0:00:58"]
[BlackClock "0:00:44"]

1. e4 {[%clk 0:03:00]}  c6 {[%clk 0:02:56]} 2. Nc3 {[%clk 0:02:59]}  d5 {[%clk 0:02:57]} 3. Nf3 {[%clk 0:03:00]}  Bg4 {[%clk 0:02:57]} 4. h3 {[%clk 0:02:59]}  Bh5 {[%clk 0:02:57]} 5. exd5 {[%clk 0:02:56]}  cxd5 {[%clk 0:02:57]} 6. g4 {[%clk 0:02:56]}  Bg6 {[%clk 0:02:56]} 7. Ne5 {[%clk 0:02:56]}  Nc6 {[%clk 0:02:55]} 8. d4 {[%clk 0:02:43]}  e6 {[%clk 0:02:48]} 9. h4 {[%clk 0:02:37]}  f6 {[%clk 0:02:48]} 10. Nxg6 {[%clk 0:02:36]}  hxg6 {[%clk 0:02:47]} 11. Bf4 {[%clk 0:02:32]}  Bb4 {[%clk 0:02:43]} 12. Qd3 {[%clk 0:02:31]}  Nge7 {[%clk 0:02:39]} 13. a3 {[%clk 0:02:29]}  Qa5 {[%clk 0:02:36]} 14. O-O-O {[%clk 0:02:23]}  Bxc3 {[%clk 0:02:36]} 15. Qxc3 {[%clk 0:02:24]}  Qxc3 {[%clk 0:02:36]} 16. bxc3 {[%clk 0:02:24]}  Rc8 {[%clk 0:02:35]} 17. c4 {[%clk 0:02:23]}  Na5 {[%clk 0:02:29]} 18. c5 {[%clk 0:02:20]}  b6 {[%clk 0:02:26]} 19. Bb5+ {[%clk 0:02:11]}  Kf7 {[%clk 0:02:26]} 20. Rde1 {[%clk 0:02:02]}  Rhd8 {[%clk 0:02:16]} 21. Ba6 {[%clk 0:01:56]}  bxc5 {[%clk 0:02:12]} 22. Bxc8 {[%clk 0:01:54]}  Rxc8 {[%clk 0:02:12]} 23. dxc5 {[%clk 0:01:53]}  Rxc5 {[%clk 0:02:02]} 24. Bd6 {[%clk 0:01:52]}  Rc4 {[%clk 0:01:59]} 25. Bxe7 {[%clk 0:01:50]}  Kxe7 {[%clk 0:01:59]} 26. f3 {[%clk 0:01:50]}  Nc6 {[%clk 0:01:56]} 27. h5 {[%clk 0:01:49]}  gxh5 {[%clk 0:01:55]} 28. gxh5 {[%clk 0:01:50]}  Nd4 {[%clk 0:01:54]} 29. h6 {[%clk 0:01:39]}  gxh6 {[%clk 0:01:51]} 30. Rxh6 {[%clk 0:01:39]}  Nxc2 {[%clk 0:01:49]} 31. Rg1 {[%clk 0:01:35]}  Nxa3+ {[%clk 0:01:42]} 32. Kb2 {[%clk 0:01:34]}  Nb5 {[%clk 0:01:39]} 33. Rg7+ {[%clk 0:01:34]}  Kd6 {[%clk 0:01:40]} 34. Rxf6 {[%clk 0:01:34]}  Ke5 {[%clk 0:01:35]} 35. Rf8 {[%clk 0:01:32]}  Nd4 {[%clk 0:01:32]} 36. Rxa7 {[%clk 0:01:24]}  Rc2+ {[%clk 0:01:28]} 37. Kb1 {[%clk 0:01:23]}  Rf2 {[%clk 0:01:23]} 38. Ra3 {[%clk 0:01:22]}  Nb5 {[%clk 0:01:07]} 39. Re3+ {[%clk 0:01:20]}  Kd4 {[%clk 0:00:55]} 40. Rxe6 {[%clk 0:01:16]}  Nc3+ {[%clk 0:00:55]} 41. Kc1 {[%clk 0:00:58]}  Kd3 {[%clk 0:00:44]} 0-1


[Site "https://www.chess.com"]

[Event "Titled Tuesday Blitz May 16 Late 2023"]
[White "Rodriguez Polo, Mateo"]
[Black "Ilkhomi, Jaloliddin"]
[WhiteFideId "24509396"]
[BlackFideId "14700948"]
[WhiteElo "2117"]
[BlackElo "2045"]
[Result "1-0"]
[Round "06"]
[TimeControl "180+2"]
[Date "2023.05.16"]
[WhiteClock "0:00:12"]
[BlackClock "0:01:58"]

1. Nf3 {[%clk 0:02:56]}  Nf6 {[%clk 0:02:59]} 2. c4 {[%clk 0:02:54]}  e6 {[%clk 0:02:59]} 3. g3 {[%clk 0:02:54]}  b6 {[%clk 0:02:58]} 4. Bg2 {[%clk 0:02:55]}  Bb7 {[%clk 0:02:58]} 5. O-O {[%clk 0:02:55]}  Be7 {[%clk 0:02:59]} 6. b3 {[%clk 0:02:56]}  O-O {[%clk 0:02:59]} 7. Nc3 {[%clk 0:02:53]}  c5 {[%clk 0:02:54]} 8. d4 {[%clk 0:02:51]}  cxd4 {[%clk 0:02:53]} 9. Qxd4 {[%clk 0:02:52]}  Nc6 {[%clk 0:02:52]} 10. Qf4 {[%clk 0:02:47]}  d6 {[%clk 0:02:50]} 11. Rd1 {[%clk 0:02:44]}  a6 {[%clk 0:02:50]} 12. Ba3 {[%clk 0:02:41]}  e5 {[%clk 0:02:46]} 13. Qd2 {[%clk 0:02:39]}  Ne8 {[%clk 0:02:35]} 14. Nd5 {[%clk 0:02:37]}  b5 {[%clk 0:02:26]} 15. Nxe7+ {[%clk 0:02:24]}  Qxe7 {[%clk 0:02:26]} 16. Bxd6 {[%clk 0:02:17]}  Nxd6 {[%clk 0:02:26]} 17. Qxd6 {[%clk 0:02:18]}  Qxd6 {[%clk 0:02:23]} 18. Rxd6 {[%clk 0:02:19]}  bxc4 {[%clk 0:02:24]} 19. bxc4 {[%clk 0:02:20]}  Rad8 {[%clk 0:02:24]} 20. Rxd8 {[%clk 0:02:11]}  Rxd8 {[%clk 0:02:24]} 21. Nxe5 {[%clk 0:02:09]}  Nxe5 {[%clk 0:02:25]} 22. Bxb7 {[%clk 0:02:08]}  Nxc4 {[%clk 0:02:26]} 23. Bxa6 {[%clk 0:02:06]}  Na3 {[%clk 0:02:27]} 24. Bd3 {[%clk 0:02:05]}  g6 {[%clk 0:02:23]} 25. Rc1 {[%clk 0:02:01]}  Ra8 {[%clk 0:02:23]} 26. Rc7 {[%clk 0:01:55]}  Ra5 {[%clk 0:02:23]} 27. Rb7 {[%clk 0:01:46]}  Kg7 {[%clk 0:02:22]} 28. Rb3 {[%clk 0:01:41]}  h5 {[%clk 0:02:21]} 29. h4 {[%clk 0:01:41]}  Ra4 {[%clk 0:02:21]} 30. Rc3 {[%clk 0:01:33]}  Ra5 {[%clk 0:02:22]} 31. Kg2 {[%clk 0:01:31]}  Kf6 {[%clk 0:02:21]} 32. Kf3 {[%clk 0:01:29]}  Ke5 {[%clk 0:02:21]} 33. Ke3 {[%clk 0:01:28]}  Kd5 {[%clk 0:02:21]} 34. Kd2 {[%clk 0:01:22]}  f6 {[%clk 0:02:16]} 35. Bxg6 {[%clk 0:01:02]}  Nc4+ {[%clk 0:02:15]} 36. Kc1 {[%clk 0:00:46]}  Kd4 {[%clk 0:02:04]} 37. Rd3+ {[%clk 0:00:42]}  Kc5 {[%clk 0:02:05]} 38. Rc3 {[%clk 0:00:40]}  Kd4 {[%clk 0:02:04]} 39. Rd3+ {[%clk 0:00:38]}  Kc5 {[%clk 0:02:04]} 40. Bxh5 {[%clk 0:00:33]}  Rxa2 {[%clk 0:02:03]} 41. Rc3 {[%clk 0:00:27]}  Kb4 {[%clk 0:02:02]} 42. Rxc4+ {[%clk 0:00:27]}  Kb3 {[%clk 0:01:57]} 43. Bf7 {[%clk 0:00:20]}  Ra1+ {[%clk 0:01:54]} 44. Kd2 {[%clk 0:00:19]}  Ka3 {[%clk 0:01:55]} 45. Rc3+ {[%clk 0:00:18]}  Kb4 {[%clk 0:01:55]} 46. Rc2 {[%clk 0:00:17]}  Ra7 {[%clk 0:01:55]} 47. Bg6 {[%clk 0:00:17]}  Kb3 {[%clk 0:01:55]} 48. Bd3 {[%clk 0:00:18]}  Rd7 {[%clk 0:01:55]} 49. Ke3 {[%clk 0:00:18]}  Kb4 {[%clk 0:01:56]} 50. Rc4+ {[%clk 0:00:18]}  Kb5 {[%clk 0:01:57]} 51. Rc2+ {[%clk 0:00:18]}  Kb4 {[%clk 0:01:56]} 52. Rc4+ {[%clk 0:00:18]}  Kb3 {[%clk 0:01:57]} 53. Rd4 {[%clk 0:00:18]}  Re7+ {[%clk 0:01:58]} 54. Re4 {[%clk 0:00:18]}  Rg7 {[%clk 0:01:59]} 55. Rc4 {[%clk 0:00:18]}  Re7+ {[%clk 0:01:59]} 56. Kf4 {[%clk 0:00:18]}  Re5 {[%clk 0:02:00]} 57. g4 {[%clk 0:00:17]}  Ra5 {[%clk 0:02:00]} 58. h5 {[%clk 0:00:17]}  Ra1 {[%clk 0:02:00]} 59. e4 {[%clk 0:00:17]}  Rh1 {[%clk 0:02:01]} 60. f3 {[%clk 0:00:17]}  Rd1 {[%clk 0:02:01]} 61. Rd4 {[%clk 0:00:17]}  Kc3 {[%clk 0:02:02]} 62. Rd8 {[%clk 0:00:17]}  Ra1 {[%clk 0:02:01]} 63. h6 {[%clk 0:00:17]}  Rh1 {[%clk 0:02:02]} 64. Rh8 {[%clk 0:00:14]}  Kxd3 {[%clk 0:02:02]} 65. h7 {[%clk 0:00:14]}  Ke2 {[%clk 0:02:02]} 66. e5 {[%clk 0:00:12]}  fxe5+ {[%clk 0:02:02]} 67. Kxe5 {[%clk 0:00:13]}  Kxf3 {[%clk 0:02:03]} 68. g5 {[%clk 0:00:13]}  Kg4 {[%clk 0:02:02]} 69. g6 {[%clk 0:00:14]}  Re1+ {[%clk 0:02:01]} 70. Kd4 {[%clk 0:00:13]}  Rd1+ {[%clk 0:02:01]} 71. Ke3 {[%clk 0:00:13]}  Rd8 {[%clk 0:01:58]} 72. Rxd8 {[%clk 0:00:12]} 1-0


[Site "https://www.chess.com"]

[Event "Titled Tuesday Blitz May 16 Late 2023"]
[White "Blitz"]
[Black "Abduzhaparov"]
[WhiteElo "2509"]
[BlackElo "2387"]
[Result "0-1"]
[Round "06"]
[TimeControl "180+2"]
[Date "2023.05.16"]
[WhiteClock "0:00:00"]
[BlackClock "0:00:21"]

1. d4 {[%clk 0:03:00]}  d6 {[%clk 0:03:00]} 2. e4 {[%clk 0:02:56]}  Nf6 {[%clk 0:03:01]} 3. Nc3 {[%clk 0:02:55]}  e5 {[%clk 0:03:02]} 4. f4 {[%clk 0:02:53]}  exd4 {[%clk 0:03:02]} 5. Qxd4 {[%clk 0:02:54]}  Nc6 {[%clk 0:03:01]} 6. Qd2 {[%clk 0:02:46]}  Qe7 {[%clk 0:02:59]} 7. Bd3 {[%clk 0:02:43]}  Nb4 {[%clk 0:02:56]} 8. Nf3 {[%clk 0:02:39]}  c6 {[%clk 0:02:53]} 9. O-O {[%clk 0:02:34]}  d5 {[%clk 0:02:51]} 10. exd5 {[%clk 0:02:31]}  Qc5+ {[%clk 0:02:43]} 11. Kh1 {[%clk 0:02:27]}  Nbxd5 {[%clk 0:02:35]} 12. Re1+ {[%clk 0:02:21]}  Be7 {[%clk 0:02:34]} 13. Nxd5 {[%clk 0:02:21]}  Nxd5 {[%clk 0:02:29]} 14. c4 {[%clk 0:02:12]}  Nf6 {[%clk 0:02:15]} 15. b4 {[%clk 0:02:07]}  Qh5 {[%clk 0:02:09]} 16. Ba3 {[%clk 0:01:57]}  Bg4 {[%clk 0:02:02]} 17. Rxe7+ {[%clk 0:01:34]}  Kxe7 {[%clk 0:02:02]} 18. b5+ {[%clk 0:01:35]}  c5 {[%clk 0:02:01]} 19. Qe3+ {[%clk 0:01:31]}  Kf8 {[%clk 0:01:59]} 20. Bxc5+ {[%clk 0:01:05]}  Kg8 {[%clk 0:01:58]} 21. Ne5 {[%clk 0:01:05]}  b6 {[%clk 0:01:49]} 22. Bd4 {[%clk 0:01:00]}  Re8 {[%clk 0:01:43]} 23. h3 {[%clk 0:00:49]}  Bf5 {[%clk 0:01:43]} 24. Be2 {[%clk 0:00:31]}  Bg4 {[%clk 0:01:07]} 25. Bd3 {[%clk 0:00:19]}  Bf5 {[%clk 0:01:06]} 26. Be2 {[%clk 0:00:19]}  Qh6 {[%clk 0:01:03]} 27. Kg1 {[%clk 0:00:15]}  Nd7 {[%clk 0:00:54]} 28. g4 {[%clk 0:00:12]}  Nxe5 {[%clk 0:00:47]} 29. gxf5 {[%clk 0:00:10]}  f6 {[%clk 0:00:42]} 30. fxe5 {[%clk 0:00:08]}  Qxe3+ {[%clk 0:00:40]} 31. Bxe3 {[%clk 0:00:09]}  Rxe5 {[%clk 0:00:40]} 32. Kf2 {[%clk 0:00:07]}  Kf7 {[%clk 0:00:40]} 33. Bf3 {[%clk 0:00:06]}  Rhe8 {[%clk 0:00:38]} 34. Bd5+ {[%clk 0:00:05]}  Kf8 {[%clk 0:00:37]} 35. Bd4 {[%clk 0:00:02]}  Rxf5+ {[%clk 0:00:36]} 36. Kg3 {[%clk 0:00:02]}  Rg5+ {[%clk 0:00:35]} 37. Kf4 {[%clk 0:00:01]}  Rh5 {[%clk 0:00:30]} 38. Bg2 {[%clk 0:00:01]}  Rh4+ {[%clk 0:00:28]} 39. Kg3 {[%clk 0:00:01]}  Rxd4 {[%clk 0:00:28]} 40. Rc1 {[%clk 0:00:02]}  Rd3+ {[%clk 0:00:28]} 41. Kh4 {[%clk 0:00:03]}  Rd4+ {[%clk 0:00:27]} 42. Kg3 {[%clk 0:00:03]}  Re3+ {[%clk 0:00:27]} 43. Kf2 {[%clk 0:00:03]}  Ra3 {[%clk 0:00:27]} 44. Bd5 {[%clk 0:00:03]}  Rxa2+ {[%clk 0:00:26]} 45. Ke3 {[%clk 0:00:04]}  Rh4 {[%clk 0:00:24]} 46. c5 {[%clk 0:00:03]}  Ra3+ {[%clk 0:00:25]} 47. Kf2 {[%clk 0:00:03]}  bxc5 {[%clk 0:00:24]} 48. Rxc5 {[%clk 0:00:02]}  Rhxh3 {[%clk 0:00:23]} 49. Rc7 {[%clk 0:00:02]}  Rh2+ {[%clk 0:00:23]} 50. Kg1 {[%clk 0:00:00]}  Rb2 {[%clk 0:00:21]} 0-1


[Site "https://www.chess.com"]

[Event "Titled Tuesday Blitz May 16 Late 2023"]
[White "Hajiyev, Kanan"]
[Black "Szyszylo, Rafal"]
[WhiteFideId "13404148"]
[BlackFideId "1109626"]
[WhiteElo "2103"]
[BlackElo "1951"]
[Result "0-1"]
[Round "06"]
[TimeControl "180+2"]
[Date "2023.05.16"]
[WhiteClock "0:00:05"]
[BlackClock "0:00:03"]

1. d4 {[%clk 0:02:55]}  d6 {[%clk 0:03:00]} 2. Nf3 {[%clk 0:02:54]}  g6 {[%clk 0:03:01]} 3. g3 {[%clk 0:02:55]}  Nf6 {[%clk 0:03:00]} 4. Bg2 {[%clk 0:02:56]}  Bg7 {[%clk 0:03:01]} 5. O-O {[%clk 0:02:57]}  O-O {[%clk 0:03:01]} 6. b3 {[%clk 0:02:58]}  Nc6 {[%clk 0:03:00]} 7. Bb2 {[%clk 0:02:58]}  e5 {[%clk 0:03:01]} 8. dxe5 {[%clk 0:02:59]}  dxe5 {[%clk 0:03:00]} 9. Nxe5 {[%clk 0:02:55]}  Qxd1 {[%clk 0:02:47]} 10. Rxd1 {[%clk 0:01:46]}  Ng4 {[%clk 0:02:47]} 11. Nd3 {[%clk 0:01:46]}  Nd4 {[%clk 0:02:11]} 12. Bxd4 {[%clk 0:01:23]}  Bxd4 {[%clk 0:02:12]} 13. c3 {[%clk 0:01:24]}  Bg7 {[%clk 0:02:12]} 14. h3 {[%clk 0:01:21]}  Ne5 {[%clk 0:02:04]} 15. f4 {[%clk 0:01:11]}  Nxd3 {[%clk 0:01:51]} 16. Rxd3 {[%clk 0:01:05]}  Re8 {[%clk 0:01:47]} 17. e4 {[%clk 0:01:05]}  Bd7 {[%clk 0:01:29]} 18. Rxd7 {[%clk 0:00:58]}  Rad8 {[%clk 0:01:27]} 19. Rxd8 {[%clk 0:00:53]}  Rxd8 {[%clk 0:01:27]} 20. Na3 {[%clk 0:00:54]}  Bxc3 {[%clk 0:01:26]} 21. Rf1 {[%clk 0:00:35]}  Rd2 {[%clk 0:01:24]} 22. Nb5 {[%clk 0:00:30]}  Ba5 {[%clk 0:01:22]} 23. a4 {[%clk 0:00:13]}  c6 {[%clk 0:01:21]} 24. Na3 {[%clk 0:00:13]}  Bb4 {[%clk 0:01:05]} 25. Nc4 {[%clk 0:00:13]}  Bc5+ {[%clk 0:01:06]} 26. Kh1 {[%clk 0:00:11]}  Rd3 {[%clk 0:01:06]} 27. Rb1 {[%clk 0:00:11]}  b5 {[%clk 0:01:02]} 28. Ne5 {[%clk 0:00:08]}  Rxg3 {[%clk 0:00:58]} 29. Nxc6 {[%clk 0:00:07]}  b4 {[%clk 0:00:43]} 30. Kh2 {[%clk 0:00:07]}  Rc3 {[%clk 0:00:39]} 31. e5 {[%clk 0:00:08]}  Be3 {[%clk 0:00:34]} 32. Na5 {[%clk 0:00:06]}  Bxf4+ {[%clk 0:00:34]} 33. Kh1 {[%clk 0:00:05]}  Bxe5 {[%clk 0:00:32]} 34. Bd5 {[%clk 0:00:06]}  Kg7 {[%clk 0:00:30]} 35. Kg1 {[%clk 0:00:04]}  Rxh3 {[%clk 0:00:28]} 36. Rf1 {[%clk 0:00:03]}  f5 {[%clk 0:00:28]} 37. Bc4 {[%clk 0:00:04]}  Rc3 {[%clk 0:00:11]} 38. Nc6 {[%clk 0:00:04]}  Bd6 {[%clk 0:00:07]} 39. Rd1 {[%clk 0:00:05]}  Bc5+ {[%clk 0:00:07]} 40. Kg2 {[%clk 0:00:05]}  Rc2+ {[%clk 0:00:07]} 41. Kf3 {[%clk 0:00:06]}  h5 {[%clk 0:00:06]} 42. Kf4 {[%clk 0:00:05]}  Rf2+ {[%clk 0:00:05]} 43. Ke5 {[%clk 0:00:05]}  h4 {[%clk 0:00:04]} 44. Kd5 {[%clk 0:00:05]}  Be3 {[%clk 0:00:04]} 45. Rd3 {[%clk 0:00:04]}  f4 {[%clk 0:00:04]} 46. Ne5 {[%clk 0:00:04]}  h3 {[%clk 0:00:04]} 47. Ke4 {[%clk 0:00:03]}  h2 {[%clk 0:00:04]} 48. Rd1 {[%clk 0:00:03]}  Rg2 {[%clk 0:00:03]} 49. Kf3 {[%clk 0:00:03]}  Rg1 {[%clk 0:00:04]} 50. Rd7+ {[%clk 0:00:01]}  Kh6 {[%clk 0:00:03]} 51. Ng4+ {[%clk 0:00:01]}  Rxg4 {[%clk 0:00:03]} 52. Kxg4 {[%clk 0:00:02]}  h1=Q {[%clk 0:00:03]} 53. Bd5 {[%clk 0:00:02]}  Qh2 {[%clk 0:00:02]} 54. Kf3 {[%clk 0:00:03]}  Qg3+ {[%clk 0:00:02]} 55. Ke4 {[%clk 0:00:04]}  Kg5 {[%clk 0:00:02]} 56. Kd3 {[%clk 0:00:05]}  Kf6 {[%clk 0:00:03]} 57. Be4 {[%clk 0:00:06]}  Qe1 {[%clk 0:00:02]} 58. Kc4 {[%clk 0:00:06]}  Qc1+ {[%clk 0:00:01]} 59. Kb5 {[%clk 0:00:06]}  Qc5+ {[%clk 0:00:02]} 60. Ka6 {[%clk 0:00:05]}  Qb6# {[%clk 0:00:03]} 0-1


[Site "https://www.chess.com"]

[Event "Titled Tuesday Blitz May 16 Late 2023"]
[White "FromTexas54"]
[Black "Bilan, Danila"]
[BlackFideId "24161918"]
[WhiteElo "2381"]
[BlackElo "2182"]
[Result "0-1"]
[Round "06"]
[TimeControl "180+2"]
[Date "2023.05.16"]
[WhiteClock "0:00:00"]
[BlackClock "0:00:08"]

1. Nf3 {[%clk 0:03:00]}  d5 {[%clk 0:02:59]} 2. d4 {[%clk 0:03:00]}  Nf6 {[%clk 0:02:59]} 3. c4 {[%clk 0:03:01]}  c6 {[%clk 0:03:00]} 4. Nc3 {[%clk 0:03:01]}  e6 {[%clk 0:03:00]} 5. Bg5 {[%clk 0:03:01]}  Nbd7 {[%clk 0:03:00]} 6. e3 {[%clk 0:03:01]}  Qa5 {[%clk 0:03:01]} 7. Nd2 {[%clk 0:02:59]}  Bb4 {[%clk 0:03:00]} 8. Qc2 {[%clk 0:02:59]}  Ne4 {[%clk 0:03:00]} 9. Ndxe4 {[%clk 0:02:56]}  dxe4 {[%clk 0:03:01]} 10. Bf4 {[%clk 0:02:56]}  O-O {[%clk 0:02:59]} 11. Be2 {[%clk 0:02:52]}  f6 {[%clk 0:02:51]} 12. O-O {[%clk 0:02:48]}  Bxc3 {[%clk 0:02:49]} 13. bxc3 {[%clk 0:02:47]}  e5 {[%clk 0:02:49]} 14. Bg3 {[%clk 0:02:45]}  f5 {[%clk 0:02:41]} 15. c5 {[%clk 0:02:17]}  f4 {[%clk 0:02:26]} 16. Bc4+ {[%clk 0:02:12]}  Kh8 {[%clk 0:02:24]} 17. Bh4 {[%clk 0:02:13]}  f3 {[%clk 0:02:09]} 18. Qxe4 {[%clk 0:02:05]}  fxg2 {[%clk 0:01:59]} 19. Rfc1 {[%clk 0:02:00]}  Nf6 {[%clk 0:01:16]} 20. Qxe5 {[%clk 0:01:24]}  Bg4 {[%clk 0:01:04]} 21. Qg3 {[%clk 0:01:04]}  Bh5 {[%clk 0:00:57]} 22. Bd3 {[%clk 0:00:37]}  Rae8 {[%clk 0:00:45]} 23. Qh3 {[%clk 0:00:28]}  Bg4 {[%clk 0:00:38]} 24. Qg3 {[%clk 0:00:28]}  Be6 {[%clk 0:00:34]} 25. Bg5 {[%clk 0:00:23]}  Bd5 {[%clk 0:00:30]} 26. Qh4 {[%clk 0:00:21]}  Be4 {[%clk 0:00:21]} 27. Bxf6 {[%clk 0:00:12]}  Bxd3 {[%clk 0:00:20]} 28. Be5 {[%clk 0:00:12]}  Bg6 {[%clk 0:00:15]} 29. Qg3 {[%clk 0:00:12]}  Qa6 {[%clk 0:00:12]} 30. h4 {[%clk 0:00:11]}  Qe2 {[%clk 0:00:11]} 31. Re1 {[%clk 0:00:09]}  Qh5 {[%clk 0:00:11]} 32. Qg5 {[%clk 0:00:08]}  Qf3 {[%clk 0:00:10]} 33. Bg3 {[%clk 0:00:00]}  Rf5 {[%clk 0:00:08]} 0-1


[Site "https://www.chess.com"]